bitfinex-derivatives/quotes_ETHF0:USTF0_20241024
["timestamp","ask_amount","ask_price","bid_price","bid_amount"]
[1729757616361,8.51682629,2550.3,2550.2,1.54153867]
[1729757616662,9.64836496,2550.3,2550.2,1.54153867]
[1729757616860,9.64836496,2550.3,2550.2,0.41]
[1729757617056,9.64836496,2550.3,2550.2,1.54153867]
[1729757618464,9.64836496,2550.3,2550.2,0.41]
[1729757622765,0.39251,2550.1,2550.0,1.13153867]
[1729757623258,1.52404867,2550.1,2550.0,1.13153867]
[1729757624863,5.05313867,2550.1,2549.9,0.405]
[1729757625074,1.52405867,2550.0,2549.9,0.405]
[1729757625568,9.87075318,2550.0,2549.9,0.405]
[1729757627072,9.87075318,2550.0,2549.6,1.54143867]
[1729757627073,0.39257,2549.7,2549.6,1.54143867]
[1729757627273,1.52410867,2549.7,2549.6,0.8464]
[1729757627473,9.53018536,2549.7,2549.6,0.8464]
[1729757628859,9.53018536,2549.7,2549.6,0.4099]
[1729757633370,8.39864669,2549.7,2549.6,0.4099]
[1729757633571,9.53018536,2549.7,2549.6,0.4099]
[1729757635177,5.60778536,2549.7,2549.6,0.4099]
[1729757635366,5.60778536,2549.7,2549.6,0.8164]
[1729757635976,9.53018536,2549.7,2549.6,0.8164]
[1729757636777,5.60778536,2549.7,2549.6,0.8164]
[1729757636977,9.53018536,2549.7,2549.6,0.8164]
[1729757638176,5.60778536,2549.7,2549.6,0.8164]
[1729757639982,0.39263,2549.3,2549.2,3.2078]
[1729757640274,4.08367669,2549.7,2549.2,4.33933867]
[1729757640476,1.13153867,2549.9,2549.6,1.13153867]
[1729757640682,0.39257,2549.7,2549.5,3.6004]
[1729757641389,0.39257,2549.7,2549.6,0.8574]
[1729757641576,0.39256,2549.8,2549.6,0.8574]
[1729757641775,1.52409867,2549.8,2549.6,1.98893867]
[1729757642370,1.52409867,2549.8,2549.7,1.13153867]
[1729757642571,0.39256,2549.8,2549.7,1.13153867]
[1729757643980,0.98126,2550.2,2549.7,1.13153867]
[1729757644289,0.39249,2550.2,2550.1,1.13153867]
[1729757644592,4.84491068,2550.2,2550.1,1.13153867]
[1729757645280,0.39249,2550.2,2550.1,1.13153867]
[1729757646282,1.13153867,2550.2,2550.0,1.13153867]
[1729757646578,1.52402867,2550.2,2550.1,0.825]
[1729757646779,0.39249,2550.3,2550.1,1.95653867]
[1729757646983,0.39249,2550.3,2550.2,1.13153867]
[1729757649591,0.29081104,2550.9,2550.2,5.44482867]
[1729757649592,0.39246,2550.5,2550.2,5.44482867]
[1729757649791,0.39246,2550.5,2550.4,1.13153867]
[1729757649990,0.39246,2550.5,2550.4,8.26013867]
[1729757651587,1.13153867,2550.8,2550.4,8.26013867]
[1729757651789,0.39242,2550.7,2550.6,1.13153867]
[1729757652493,0.39243,2550.6,2550.5,1.96903867]
[1729757653878,0.39242,2550.8,2550.5,2.36147867]
[1729757654094,0.3924,2550.8,2550.7,1.13153867]
[1729757655383,3.2078,2551.3,2550.7,8.26013867]
[1729757655695,3.2078,2551.3,2551.2,1.13153867]
[1729757655696,0.39232,2551.3,2551.2,1.13153867]
[1729757655886,41.19232,2551.3,2551.2,1.13153867]
[1729757656589,3.6282,2551.6,2551.2,1.13153867]
[1729757656791,0.39228,2551.6,2551.5,1.13153867]
[1729757657488,1.52381867,2551.6,2551.5,1.13153867]
[1729757658290,0.39231,2551.4,2551.3,3.2078]
[1729757659681,0.39231,2551.4,2551.3,3.604]
[1729757661490,0.39231,2551.4,2551.3,0.3962]
[1729757670091,0.39234,2551.2,2551.1,0.4369]
[1729757670397,0.39234,2551.2,2551.0,0.948]
[1729757670398,0.39236,2551.1,2551.0,1.3698]
[1729757678599,0.39236,2551.1,2551.0,4.5776]
[1729757680411,0.39236,2551.1,2551.0,5.7084739]
[1729757687911,0.39236,2551.1,2551.0,4.7604739]
[1729757688305,0.39236,2551.1,2551.0,1.5526739]
[1729757688712,0.39236,2551.1,2551.0,4.7604739]
[1729757691317,0.39236,2551.1,2551.0,1.5526739]
[1729757697714,0.39236,2551.1,2551.0,0.4218]
[1729757697911,0.39236,2551.1,2551.0,1.5526739]
[1729757699716,1.1308739,2551.2,2551.0,1.1308739]
[1729757699922,5.57213141,2551.1,2551.0,1.1308739]
[1729757700122,1.24556,2551.1,2551.0,1.1308739]
[1729757700322,5.57213141,2551.1,2551.0,1.1308739]
[1729757711734,3.2078,2551.4,2551.0,1.1308739]
[1729757712036,4.70132195,2551.2,2551.1,4.4527]
[1729757712339,0.39235,2551.2,2551.1,5.5835739]
[1729757713042,0.39235,2551.2,2551.1,2.3757739]
[1729757724054,0.39235,2551.2,2551.1,1.9716739]
[1729757724252,0.39235,2551.2,2551.1,1.5347739]
[1729757724553,5.29959836,2551.2,2551.1,1.1308739]
[1729757724750,5.66269836,2551.2,2551.1,1.1308739]
[1729757727256,0.39239,2550.9,2550.8,1.7862]
[1729757727456,0.39239,2550.9,2550.8,2.9170739]
[1729757733360,0.39239,2550.9,2550.8,3.3094739]
[1729757733959,4.10404836,2551.2,2550.8,6.8370739]
[1729757734152,0.39235,2551.2,2551.1,4.3386739]
[1729757734763,0.39235,2551.2,2551.1,5.1742739]
[1729757736259,0.39235,2551.2,2551.1,5.5666339]
[1729757737651,0.39235,2551.2,2551.1,5.1742739]
[1729757737954,0.39235,2551.2,2551.1,5.5666339]
[1729757738355,0.39235,2551.2,2551.1,5.1742739]
[1729757738751,0.39235,2551.2,2551.1,9.0942739]
[1729757741264,0.39235,2551.2,2551.1,9.4866339]
[1729757742064,1.80563,2551.6,2551.1,9.0942739]
[1729757742365,0.39228,2551.6,2551.5,1.1308739]
[1729757745469,0.39226,2551.8,2551.6,0.39227]
[1729757745672,0.39226,2551.8,2551.7,1.5513739]
[1729757747771,0.39223,2552.0,2551.7,8.6783739]
[1729757747976,0.39223,2552.0,2551.9,2.2617478]
[1729757748266,0.39222,2552.0,2551.9,1.1308739]
[1729757748479,0.39222,2552.0,2551.9,1.5444739]
[1729757750574,0.39222,2552.0,2551.9,4.7522739]
[1729757755172,0.39222,2552.0,2551.9,5.6962739]
[1729757759668,0.39222,2552.0,2551.9,2.4884739]
[1729757760274,0.39222,2552.0,2551.9,5.6962739]
[1729757762083,0.39222,2552.0,2551.9,2.4884739]
[1729757762278,0.39222,2552.0,2551.9,5.6962739]
[1729757763174,0.39222,2552.0,2551.9,7.2193778]
[1729757764773,45.81026,2552.5,2551.9,7.2193778]
[1729757764774,3.2078,2552.5,2552.1,0.3922]
[1729757764986,3.59994,2552.5,2552.4,1.1308739]
[1729757766371,0.39214,2552.5,2552.4,1.1308739]
[1729757769080,0.39214,2552.5,2552.3,0.8171]
[1729757769081,1.1308739,2552.6,2552.2,3.2078]
[1729757769285,1.9182739,2552.4,2551.9,3.2078]
[1729757769475,0.39222,2552.0,2551.9,3.2078]
[1729757769985,0.39222,2552.0,2551.9,4.7443739]
[1729757771580,0.39222,2552.0,2551.9,1.5365739]
[1729757774983,0.39222,2552.0,2551.9,2.6674478]
[1729757775185,0.39222,2552.0,2551.9,1.5365739]
[1729757776583,0.39222,2552.0,2551.9,1.9288039]
[1729757776977,0.39222,2552.0,2551.9,5.8472039]
[1729757777181,0.4186,2552.5,2551.9,6.5858478]
[1729757777182,0.39221,2552.1,2551.9,6.5858478]
[1729757777381,0.39221,2552.1,2552.0,2.6777478]
[1729757777784,0.39221,2552.1,2552.0,6.5961478]
[1729757779403,0.39221,2552.1,2552.0,6.9883678]
[1729757780793,3.2078,2552.7,2552.0,6.5961478]
[1729757781084,0.39217,2552.4,2552.3,0.39217]
[1729757781277,0.39217,2552.4,2552.3,1.75337]
[1729757781481,0.39217,2552.4,2552.3,5.67097]
[1729757781877,0.39211,2552.7,2552.6,0.39212]
[1729757782088,0.39211,2552.7,2552.6,1.1308739]
[1729757783586,0.39211,2552.7,2552.6,6.1793478]
[1729757783785,0.39211,2552.7,2552.6,5.4405939]
[1729757783987,0.39211,2552.7,2552.6,5.8476939]
[1729757784791,3.2078,2553.0,2552.6,6.9785678]
[1729757784991,3.2078,2553.0,2552.9,1.1308739]
[1729757784992,3.59986,2553.0,2552.9,1.1308739]
[1729757788198,0.39206,2553.0,2552.9,1.1308739]
[1729757796689,9.1303123,2553.0,2552.4,0.418]
[1729757796889,9.1303123,2553.0,2552.4,0.8391]
[1729757796890,0.39214,2552.5,2552.4,0.8391]
[1729757798196,0.39214,2552.5,2552.4,1.9699739]
[1729757799407,0.9804,2552.4,2552.0,3.2078]
[1729757799599,0.8598,2552.4,2552.1,1.1308739]
[1729757799905,0.39217,2552.3,2552.2,0.4133]
[1729757800395,0.39217,2552.3,2552.2,1.5441739]
[1729757802299,0.39217,2552.3,2552.2,1.9396739]
[1729757804399,0.39217,2552.3,2552.2,1.1308739]
[1729757804696,0.3922,2552.1,2552.0,4.1498]
[1729757804897,0.3922,2552.1,2552.0,4.3386739]
[1729757805100,0.3922,2552.1,2552.0,3.2078]
[1729757805303,0.3922,2552.1,2552.0,4.3386739]
[1729757813001,0.3922,2552.1,2552.0,1.1308739]
[1729757814311,0.39216,2552.4,2552.0,6.1801478]
[1729757814513,0.39216,2552.4,2552.3,1.1308739]
[1729757814907,0.39216,2552.4,2552.3,1.5557739]
[1729757816708,0.3922,2552.1,2552.0,0.8478]
[1729757816914,0.3922,2552.1,2552.0,2.4092739]
[1729757827207,0.39222,2552.0,2551.9,4.3386739]
[1729757827408,1.64602,2552.0,2551.9,4.3386739]
[1729757830622,1.64602,2552.0,2551.9,1.1308739]
[1729757839126,0.39225,2551.8,2551.7,0.4357]
[1729757839326,0.39229,2551.5,2551.4,0.8369]
[1729757839521,0.39229,2551.5,2551.4,1.9677739]
[1729757839728,0.39229,2551.5,2551.4,2.3739739]
[1729757842034,0.39231,2551.4,2551.3,4.3386739]
[1729757842237,0.80451,2551.4,2551.3,4.3386739]
[1729757842434,0.80451,2551.4,2551.3,3.2078]
[1729757842435,10.23687456,2551.4,2551.3,3.2078]
[1729757842637,10.23687456,2551.4,2551.3,4.3386739]
[1729757843835,9.10600066,2551.4,2551.3,1.1308739]
[1729757844337,4.77460066,2551.4,2551.3,1.1308739]
[1729757844843,4.77460066,2551.4,2551.3,1.5560739]
[1729757850440,9.82467456,2551.4,2551.3,0.4252]
[1729757850740,11.09717456,2551.4,2551.3,0.4252]
[1729757851235,0.3924,2550.8,2550.7,3.2078]
[1729757851541,0.3924,2550.8,2550.7,4.3386739]
[1729757852240,0.3924,2550.8,2550.7,3.2078]
[1729757852544,0.39239,2550.9,2550.7,4.3386739]
[1729757852736,0.39239,2550.9,2550.8,1.9253739]
[1729757855536,0.39239,2550.9,2550.8,5.1331739]
[1729757858140,0.39239,2550.9,2550.8,0.7945]
[1729757858341,0.39239,2550.9,2550.8,1.5289739]
[1729757858642,1.5232639,2550.9,2550.8,1.5289739]
[1729757858946,0.39239,2550.9,2550.8,1.5289739]
[1729757865647,6.04855694,2550.9,2550.8,1.5289739]
[1729757866038,6.04855694,2550.9,2550.8,1.1308739]
[1729757866648,4.91768304,2550.9,2550.8,1.1308739]
[1729757869350,0.39242,2550.7,2550.6,0.8757]
[1729757869550,0.39242,2550.7,2550.6,2.0065739]
[1729757888558,0.39243,2550.6,2550.5,3.2078]
[1729757888861,1.9401039,2550.6,2550.5,3.2078]
[1729757890262,0.39245,2550.5,2550.4,1.1308739]
[1729757890468,1.21055,2550.5,2550.4,1.1308739]
[1729757892359,0.8181,2550.5,2550.2,3.607]
[1729757892555,1.5233539,2550.3,2550.2,1.5300739]
[1729757892769,1.5233539,2550.3,2550.2,1.1308739]
[1729757895771,0.39251,2550.1,2550.0,0.3992]
[1729757895964,1.5233839,2550.1,2550.0,1.5300739]
[1729757896364,2.3278839,2550.1,2550.0,1.5300739]
[1729757897369,10.93272196,2550.1,2549.6,3.2078]
[1729757897676,1.5233939,2550.0,2549.9,1.1308739]
[1729757897968,46.6569739,2550.1,2550.0,1.1308739]
[1729757898171,42.7353739,2550.1,2550.0,1.1308739]
[1729757898468,51.23012181,2550.1,2550.0,1.1308739]
[1729757899474,0.39252,2550.0,2549.9,1.1308739]
[1729757899668,1.5233939,2550.0,2549.9,1.1308739]
[1729757899976,9.63863989,2550.0,2549.9,1.1308739]
[1729757900162,5.71703989,2550.0,2549.9,1.1308739]
[1729757901564,5.71703989,2550.0,2549.6,3.2078]
[1729757901565,0.39254,2549.9,2549.7,1.1308739]
[1729757901771,1.5234339,2549.8,2549.7,1.1308739]
[1729757901973,5.88962478,2549.8,2549.7,1.1308739]
[1729757902171,0.39259,2549.6,2549.5,0.4131]
[1729757902374,0.39259,2549.6,2549.5,1.5439739]
[1729757908675,1.5572739,2549.7,2549.5,1.1308739]
[1729757908875,0.39259,2549.6,2549.5,1.1308739]
[1729757909881,0.82529,2549.6,2549.5,1.1308739]
[1729757915690,0.39259,2549.6,2549.5,1.1308739]
[1729757926288,0.3926,2549.5,2549.4,4.0054]
[1729757926484,0.3926,2549.5,2549.4,4.3386739]
[1729757928692,1.1308739,2549.5,2549.0,0.4334]
[1729757928904,1.5235239,2549.2,2549.1,0.4379]
[1729757929105,0.39266,2549.1,2549.0,1.5642739]
[1729757929898,0.39266,2549.1,2549.0,1.1308739]
[1729757930601,0.80376,2549.1,2549.0,1.5687739]
[1729757932898,0.80376,2549.1,2549.0,1.5687739]
[1729757933798,1.5419739,2549.1,2548.8,4.3386739]
[1729757933999,0.39269,2548.9,2548.8,4.3386739]
[1729757934398,0.39269,2548.9,2548.8,3.2078]
[1729757934399,1.9422639,2548.9,2548.8,3.2078]
[1729757938607,0.39272,2548.7,2548.6,5.1576739]
[1729757938805,1.5235939,2548.7,2548.6,5.1576739]
[1729757939600,1.5235939,2548.7,2548.6,3.6298]
[1729757939802,1.5235939,2548.7,2548.6,3.2078]
[1729757939803,1.9596939,2548.7,2548.6,3.2078]
[1729757940511,6.10932352,2548.7,2548.6,3.2078]
[1729757942404,0.39274,2548.6,2548.5,1.5388739]
[1729757942601,0.39274,2548.6,2548.5,4.7466739]
[1729757943512,1.5236139,2548.6,2548.5,4.7466739]
[1729757943710,1.5236139,2548.6,2548.5,1.5388739]
[1729757944608,1.5236139,2548.6,2548.5,4.7466739]
[1729757945511,1.5236139,2548.6,2548.5,3.2078]
[1729757946611,0.39276,2548.5,2548.4,1.1308739]
[1729757946802,1.9255339,2548.5,2548.4,1.1308739]
[1729757948614,1.9255339,2548.5,2548.2,0.428]
[1729757948615,0.39277,2548.4,2548.3,1.1308739]
[1729757949411,0.39277,2548.4,2548.3,4.3386739]
[1729757949612,0.39277,2548.4,2548.3,1.1308739]
[1729757950211,0.39277,2548.4,2548.3,4.3386739]
[1729757953617,0.39277,2548.4,2548.3,1.1308739]
[1729757954220,0.39277,2548.4,2548.3,4.3386739]
[1729757954820,3.2078,2549.2,2548.3,9.3935478]
[1729757955119,0.9816,2549.3,2549.1,1.1308739]
[1729757955120,0.39264,2549.3,2549.1,1.1308739]
[1729757955320,0.39264,2549.3,2549.2,9.5154739]
[1729757956822,0.39264,2549.3,2549.2,5.5930739]
[1729757957817,0.39264,2549.3,2549.2,9.5154739]
[1729757964023,0.39264,2549.3,2549.2,5.5930739]
[1729757964228,0.39264,2549.3,2549.2,9.5154739]
[1729757964530,0.39264,2549.3,2549.2,5.5930739]
[1729757965428,1.5235139,2549.3,2549.2,5.5930739]
[1729757966037,1.5235139,2549.3,2549.2,4.0357]
[1729757966339,0.39269,2548.9,2548.8,1.3409]
[1729757966530,0.39269,2548.9,2548.8,6.1071739]
[1729757966928,1.5235639,2548.9,2548.8,5.7082739]
[1729757967737,0.39269,2548.9,2548.8,5.7082739]
[1729757968138,0.39269,2548.9,2548.8,2.5004739]
[1729757968338,0.39269,2548.9,2548.8,5.7082739]
[1729757971240,0.39269,2548.9,2548.8,2.5004739]
[1729757971545,0.39269,2548.9,2548.8,5.7082739]
[1729757972341,0.39269,2548.9,2548.8,2.5004739]
[1729757972742,0.39269,2548.9,2548.8,5.7082739]
[1729757974035,0.39269,2548.9,2548.8,2.5004739]
[1729757974542,0.39269,2548.9,2548.8,5.7082739]
[1729757978541,0.39267,2549.1,2548.8,9.6314739]
[1729757978843,0.39266,2549.1,2549.0,1.5235439]
[1729757979043,0.39266,2549.1,2549.0,5.4467439]
[1729757979433,43.00911,2549.5,2549.0,5.4467439]
[1729757979434,42.0276,2549.5,2549.0,5.0540739]
[1729757979642,0.39266,2549.2,2549.1,3.60046]
[1729757980041,0.39266,2549.2,2549.1,7.131]
[1729757981240,0.39266,2549.2,2549.1,8.2618739]
[1729757983142,0.39266,2549.2,2549.1,5.0540739]
[1729757985051,0.39266,2549.2,2549.1,1.1308739]
[1729757985550,0.39266,2549.1,2549.0,4.3386739]
[1729757985749,1.21036,2549.1,2549.0,4.3386739]
[1729757990048,1.21036,2549.1,2549.0,1.1308739]
[1729757990349,1.21036,2549.1,2549.0,4.3386739]
[1729757991040,1.21036,2549.1,2549.0,8.6545539]
[1729757991041,0.39266,2549.1,2549.0,8.6545539]
[1729757991246,0.39266,2549.2,2549.1,0.39266]
[1729757991440,0.39266,2549.2,2549.1,1.5235339]
[1729757992152,0.39266,2549.2,2549.1,1.1308739]
[1729757995144,0.39266,2549.2,2549.1,4.3386739]
[1729757995550,0.39266,2549.2,2549.1,4.7563739]
[1729757995749,0.39266,2549.2,2549.1,1.5485739]
[1729757995955,0.39266,2549.2,2549.1,4.7563739]
[1729757998249,0.39266,2549.2,2549.1,1.5485739]
[1729757998441,0.39266,2549.2,2549.1,4.7563739]
[1729758002254,0.39266,2549.2,2549.1,5.6983739]
[1729758002655,0.39266,2549.2,2549.1,6.0910339]
[1729758003568,0.39266,2549.2,2549.1,5.6983739]
[1729758006164,1.5235339,2549.2,2549.1,3.6255]
[1729758006352,1.5235339,2549.2,2549.1,4.1498]
[1729758006759,0.39266,2549.2,2549.1,4.1498]
[1729758007057,0.39266,2549.2,2549.1,5.2806739]
[1729758008558,0.39266,2549.2,2549.1,5.6733339]
[1729758008861,0.39266,2549.2,2549.1,5.2806739]
[1729758012559,0.39266,2549.2,2549.1,4.1498]
[1729758014770,0.39266,2549.2,2549.1,0.942]
[1729758015270,0.39266,2549.2,2549.1,4.1498]
[1729758015964,1.9506339,2549.2,2549.1,3.2078]
[1729758016362,1.9506239,2549.2,2549.1,3.2078]
[1729758017570,1.9506239,2549.2,2549.1,4.3386739]
[1729758017771,0.81975,2549.2,2549.1,4.3386739]
[1729758020272,0.39264,2549.3,2549.1,4.3386739]
[1729758020475,0.39264,2549.3,2549.2,1.1308739]
[1729758023880,0.39264,2549.3,2549.2,4.3386739]
[1729758027176,0.39264,2549.3,2549.2,1.1308739]
[1729758027377,0.39264,2549.3,2549.2,4.3386739]
[1729758027978,0.39264,2549.3,2549.2,1.1308739]
[1729758028174,0.39264,2549.3,2549.2,4.3386739]
[1729758028583,1.5235139,2549.3,2549.2,3.2078]
[1729758029088,1.5235139,2549.3,2549.1,2.0718739]
[1729758029089,0.39265,2549.2,2549.1,2.0718739]
[1729758029281,0.83045,2549.2,2549.1,5.2796739]
[1729758029471,1.9613239,2549.2,2549.1,4.1488]
[1729758030075,1.9613239,2549.2,2549.1,0.941]
[1729758030475,1.9613239,2549.2,2549.1,4.1488]
[1729758032175,1.9613239,2549.2,2549.1,3.2078]
[1729758032176,5.8845239,2549.2,2549.1,3.2078]
[1729758032375,10.09552191,2549.2,2549.1,3.2078]
[1729758033180,0.39269,2548.9,2548.8,3.2078]
[1729758033375,1.5235639,2548.9,2548.8,3.2078]
[1729758033675,5.4467639,2548.9,2548.8,4.3386739]
[1729758036078,1.5235639,2548.9,2548.8,4.3386739]
[1729758037582,1.5235639,2548.9,2548.8,3.2078]
[1729758037887,5.4467639,2548.9,2548.8,3.2078]
[1729758038574,0.39271,2548.8,2548.7,1.1308739]
[1729758038774,0.82821,2548.8,2548.7,4.3386739]
[1729758039073,0.82821,2548.8,2548.7,1.1308739]
[1729758039277,0.82821,2548.8,2548.7,4.3386739]
[1729758039789,0.82821,2548.8,2548.7,1.1308739]
[1729758040086,0.82821,2548.8,2548.7,4.3386739]
[1729758041703,0.39271,2548.8,2548.7,4.3386739]
[1729758042582,0.39271,2548.8,2548.7,5.1620739]
[1729758043391,0.39271,2548.8,2548.7,1.9542739]
[1729758043590,0.39271,2548.8,2548.7,5.1620739]
[1729758044795,0.82921,2548.8,2548.7,5.1620739]
[1729758046087,0.39271,2548.8,2548.7,5.5547939]
[1729758046293,0.39271,2548.8,2548.7,5.1620739]
[1729758046993,0.39271,2548.8,2548.7,5.5547939]
[1729758051302,0.39271,2548.9,2548.8,0.39271]
[1729758051491,0.39268,2549.0,2548.9,0.39269]
[1729758051692,0.39268,2549.0,2548.9,1.5235639]
[1729758052610,0.39268,2549.0,2548.9,1.1308739]
[1729758054902,0.39268,2549.0,2548.9,1.5235639]
[1729758055095,0.39268,2549.0,2548.9,1.1308739]
[1729758058509,0.39268,2549.0,2548.9,4.3386739]
[1729758059707,0.39268,2549.0,2548.9,4.7313639]
[1729758062304,0.39268,2549.0,2548.9,5.6703639]
[1729758063706,0.39268,2549.0,2548.9,5.2776739]
[1729758066197,0.39268,2549.0,2548.9,4.3386739]
[1729758070301,0.39268,2549.0,2548.9,1.1308739]
[1729758070502,0.39268,2549.0,2548.9,4.3386739]
[1729758070804,0.39268,2549.0,2548.9,1.1308739]
[1729758071002,0.39268,2549.0,2548.9,4.3386739]
[1729758074111,0.39269,2548.9,2548.8,1.1308739]
[1729758074311,0.39269,2548.9,2548.5,3.2078]
[1729758074312,1.9652739,2548.9,2548.5,3.2078]
[1729758074507,0.39277,2548.4,2548.3,2.38592056]
[1729758074707,0.39277,2548.4,2548.3,2.4874739]
[1729758074904,0.39277,2548.4,2548.3,5.4734739]
[1729758075104,0.39277,2548.4,2548.3,1.5494739]
[1729758075704,0.39277,2548.4,2548.2,3.2078]
[1729758075904,0.8344,2548.5,2548.2,3.2078]
[1729758075905,1.5236639,2548.3,2548.2,3.2078]
[1729758076108,1.5236639,2548.3,2548.2,4.3386739]
[1729758076109,1.9351639,2548.3,2548.2,4.3386739]
[1729758076905,0.80429,2548.3,2548.2,4.3386739]
[1729758077908,0.80429,2548.3,2548.2,1.1308739]
[1729758079117,0.4115,2548.3,2548.2,1.1308739]
[1729758079419,0.80429,2548.3,2548.2,1.1308739]
[1729758083111,0.39286,2547.9,2547.7,0.81337]
[1729758083318,1.1308739,2548.1,2547.7,3.2078]
[1729758083511,1.1308739,2548.1,2547.6,0.4333]
[1729758083512,0.82076,2547.8,2547.6,1.76419]
[1729758083813,0.82076,2547.8,2547.7,4.3386739]
[1729758084014,0.82076,2547.8,2547.7,4.7591739]
[1729758084314,0.82076,2547.8,2547.7,1.5513739]
[1729758084611,0.39288,2547.7,2547.6,0.938]
[1729758084816,0.39288,2547.7,2547.6,2.0688739]
[1729758085923,0.82078,2547.7,2547.6,2.0688739]
[1729758086414,0.82078,2547.7,2547.6,1.1308739]
[1729758089208,0.39294,2547.3,2547.2,3.2078]
[1729758089420,0.39294,2547.3,2547.2,4.3386739]
[1729758090721,0.39294,2547.3,2547.2,1.1308739]
[1729758093809,1.23734,2547.4,2547.2,1.5238239]
[1729758094005,1.23734,2547.4,2547.3,1.1308739]
[1729758094417,5.16294,2547.4,2547.3,1.1308739]
[1729758100920,1.1308739,2547.6,2547.3,1.1308739]
[1729758100921,0.39291,2547.6,2547.4,0.39292]
[1729758101120,0.39291,2547.6,2547.5,1.74681854]
[1729758101121,0.82411,2547.6,2547.5,1.74681854]
[1729758102322,4.74971,2547.6,2547.5,0.20574464]
[1729758102625,9.3873076,2547.6,2547.5,0.20574464]
[1729758102918,10.5181815,2547.6,2547.5,0.20574464]
[1729758109430,13.7259815,2547.6,2547.5,0.20574464]
[1729758114138,10.5181815,2547.6,2547.5,0.20574464]
[1729758114339,13.7259815,2547.6,2547.5,0.20574464]
[1729758115734,10.5181815,2547.6,2547.5,0.20574464]
[1729758116037,13.7259815,2547.6,2547.5,0.20574464]
[1729758119243,10.5181815,2547.6,2547.5,0.20574464]
[1729758124044,13.7259815,2547.6,2547.5,0.20574464]
[1729758125846,9.8003815,2547.6,2547.5,0.20574464]
[1729758127553,13.7259815,2547.6,2547.5,0.20574464]
[1729758129846,10.5181815,2547.6,2547.5,0.20574464]
[1729758130052,13.7259815,2547.6,2547.5,0.20574464]
[1729758131052,10.5181815,2547.6,2547.5,0.20574464]
[1729758131246,13.7259815,2547.6,2547.5,0.20574464]
[1729758132760,13.7259815,2547.6,2547.1,0.4273]
[1729758132761,0.39296,2547.2,2547.1,0.4273]
[1729758132961,1.5238339,2547.2,2547.1,0.4273]
[1729758134754,1.9234339,2547.2,2547.1,0.4273]
[1729758136952,5.89231601,2547.2,2547.1,0.4273]
[1729758137266,6.70851601,2547.2,2547.1,0.4273]
[1729758137661,6.31555601,2547.2,2547.0,0.4304]
[1729758137868,1.5238439,2547.1,2547.0,0.4304]
[1729758138164,10.91434189,2547.1,2546.4,0.4103]
[1729758138358,1.5239339,2546.5,2546.4,0.4103]
[1729758140851,5.70476118,2546.5,2546.4,0.4103]
[1729758157175,0.39308,2546.4,2546.3,0.434]
[1729758157374,1.5239539,2546.4,2546.3,0.434]
[1729758157979,5.6285567,2546.4,2545.8,1.1308739]
[1729758158278,1.5240339,2545.9,2545.8,2.3673739]
[1729758159083,1.5240339,2545.9,2545.8,1.2365]
[1729758159276,1.5240339,2545.9,2545.8,0.3988]
[1729758159470,0.3932,2545.6,2545.5,0.4367]
[1729758159679,1.5240739,2545.6,2545.5,1.9769739]
[1729758161584,0.3932,2545.6,2545.5,1.9769739]
[1729758162681,0.3932,2545.6,2545.5,2.3701939]
[1729758163883,1.1308739,2545.9,2545.5,2.3701939]
[1729758163884,0.39316,2545.9,2545.8,0.39317]
[1729758164087,3.2078,2546.0,2545.8,0.39317]
[1729758164088,0.39314,2546.1,2545.9,0.39315]
[1729758164390,1.5240139,2546.1,2546.0,1.9907739]
[1729758165183,0.39314,2546.1,2546.0,1.9907739]
[1729758168583,1.5240139,2546.1,2546.0,0.8599]
[1729758168785,1.5240139,2546.1,2546.0,0.4297]
[1729758168989,1.1308739,2546.1,2545.9,0.4366]
[1729758169188,1.5240139,2546.0,2545.9,1.5674739]
[1729758169589,0.39314,2546.0,2545.9,1.5674739]
[1729758170786,3.928,2545.9,2544.6,4.75404511]
[1729758170987,0.39326,2545.2,2545.1,0.4268]
[1729758171784,1.5241339,2545.2,2545.1,0.4268]
[1729758177990,0.39326,2545.2,2545.1,1.5576739]
[1729758178190,3.2078,2545.4,2545.1,5.4864739]
[1729758178393,3.60103,2545.4,2545.3,1.1308739]
[1729758178791,3.60103,2545.4,2545.3,5.8732739]
[1729758180994,3.2078,2545.4,2545.3,6.2665239]
[1729758181685,3.60103,2545.4,2545.3,6.2665239]
[1729758181886,3.2078,2545.4,2545.3,6.2665239]
[1729758182394,3.60103,2545.4,2545.3,5.8732739]
[1729758182582,3.2078,2545.4,2545.3,6.2665239]
[1729758182789,0.39321,2545.6,2545.4,0.39322]
[1729758182989,4.3386739,2545.9,2545.5,1.1308739]
[1729758183291,0.39315,2546.0,2545.8,1.5240439]
[1729758183493,0.39315,2546.0,2545.9,1.9647739]
[1729758183897,0.39315,2546.0,2545.9,2.3579339]
[1729758184089,0.39315,2546.0,2545.9,1.9647739]
[1729758184800,3.6316,2546.5,2545.9,5.8927739]
[1729758185098,0.39314,2546.1,2545.9,1.22705]
[1729758185483,0.39314,2546.1,2546.0,3.928]
[1729758185987,1.1308739,2546.2,2546.0,5.0588739]
[1729758186182,1.5239939,2546.2,2546.1,0.4073]
[1729758187190,1.5239939,2546.2,2546.1,1.5381739]
[1729758187490,1.5239839,2546.2,2546.1,1.9313039]
[1729758187696,0.39311,2546.2,2546.1,5.4653739]
[1729758188095,1.1308739,2546.3,2546.1,5.4653739]
[1729758188294,0.39311,2546.2,2546.1,1.9312939]
[1729758188495,1.5239739,2546.3,2546.1,1.9312939]
[1729758189400,1.1308739,2546.3,2546.1,1.5381739]
[1729758189700,0.39311,2546.2,2546.1,1.5381739]
[1729758191902,1.1308739,2546.3,2546.1,1.5381739]
[1729758192102,1.1308739,2546.3,2546.2,0.39311]
[1729758192602,1.5239639,2546.3,2546.1,1.9312939]
[1729758193101,0.39313,2546.1,2546.0,1.1308739]
[1729758193295,0.39313,2546.1,2546.0,1.5432739]
[1729758193505,1.5240039,2546.1,2546.0,1.5432739]
[1729758194100,1.1308739,2546.1,2546.0,1.5432739]
[1729758194305,1.1308739,2546.1,2546.0,1.9364139]
[1729758194902,1.5239939,2546.2,2546.0,1.9364139]
[1729758195306,0.39313,2546.1,2546.0,1.9364139]
[1729758195507,1.5239939,2546.2,2546.0,1.9364139]
[1729758195909,1.9245039,2546.1,2546.0,1.9364139]
[1729758196407,1.5313739,2546.1,2546.0,1.9364139]